fUST/lending_fUST_20250929
["ID","MTS","AMOUNT","RATE_DAILY","PERIOD"]
[388380431,1759138253635,-151.0,0.00027397,7]
[388380432,1759138253645,-1398.68,0.00027397,7]
[388380433,1759138253654,-588.87,0.00027397,7]
[388380434,1759138253664,-548.62,0.00027397,7]
[388380435,1759138253674,-151.0,0.00027397,7]
[388380436,1759138253683,-151.0,0.00027397,7]
[388380437,1759138253693,-4891.39,0.00027397,7]
[388380438,1759138253702,-480.0,0.00027397,7]
[388380439,1759138253712,-481.62728696,0.00027397,7]
[388380440,1759138253721,-480.0,0.00027397,7]
[388380441,1759138253730,-643.05,0.00027397,7]
[388380442,1759138253739,-1071.56,0.00027397,7]
[388380443,1759138253749,-159.99022613,0.00027397,7]
[388380444,1759138253759,-480.0,0.00027397,7]
[388380445,1759138253768,-1958.0,0.00027397,7]
[388380446,1759138253777,-759.34,0.00027397,7]
[388380447,1759138253787,-742.64,0.00027397,7]
[388380448,1759138253797,-482.03596892,0.00027397,7]
[388380449,1759138253807,-750.52,0.00027397,7]
[388380450,1759138253817,-849.15,0.00027397,7]
[388380451,1759138253826,-8455.84,0.00027397,7]
[388380452,1759138253835,-480.0,0.00027397,7]
[388380453,1759138253845,-234.265696,0.00027397,7]
[388380454,1759138253855,-234.265696,0.00027397,7]
[388380455,1759138253864,-480.0,0.00027397,7]
[388380456,1759138253874,-917.56,0.00027397,7]
[388380457,1759138253883,-234.265696,0.00027397,7]
[388380458,1759138253893,-480.0,0.00027397,7]
[388380459,1759138253902,-234.265696,0.00027397,7]
[388380460,1759138253911,-480.0,0.00027397,7]
[388380461,1759138253920,-234.265696,0.00027397,7]
[388380462,1759138253928,-234.265696,0.00027397,7]
[388380463,1759138253937,-480.0,0.00027397,7]
[388380464,1759138253946,-480.0,0.00027397,7]
[388380465,1759138253955,-480.0,0.00027397,7]
[388380466,1759138253964,-480.0,0.00027397,7]
[388380467,1759138253973,-234.265696,0.00027397,7]
[388380468,1759138253982,-737.21,0.00027397,7]
[388380469,1759138253991,-234.265699,0.00027397,7]
[388380470,1759138254001,-480.0,0.00027397,7]
[388380471,1759138254011,-3670.78,0.00027397,7]
[388380472,1759138254021,-2648.62,0.00027397,7]
[388380473,1759138254030,-8536.49,0.00027397,7]
[388380474,1759138254039,-480.0,0.00027397,7]
[388380475,1759138254049,-480.0,0.00027397,7]
[388380476,1759138254061,-354.81563959,0.00027397,7]
[388380477,1759138254070,-480.0,0.00027397,7]
[388380478,1759138254078,-480.0,0.00027397,7]
[388380479,1759138254086,-480.0,0.00027397,7]
[388380480,1759138254095,-480.0,0.00027397,7]
[388380481,1759138254106,-949.7,0.00027397,7]
[388380482,1759138254116,-707.29,0.00027397,7]
[388380483,1759138254126,-480.0,0.00027397,7]
[388380484,1759138254136,-1624.12,0.00027397,7]
[388380485,1759138254146,-2461.93,0.00027397,7]
[388380486,1759138254155,-480.0,0.00027397,7]
[388380487,1759138254320,-758.55,0.00027397,7]
[388380488,1759138254330,-153.62719,0.00027397,7]
[388380489,1759138254340,-480.0,0.00027397,7]
[388380490,1759138254350,-480.0,0.00027397,7]
[388380491,1759138254359,-3874.46,0.00027397,7]
[388380492,1759138254369,-967.01,0.00027397,7]
[388380493,1759138254379,-4507.59,0.00027397,7]
[388380494,1759138254389,-480.0,0.00027397,7]
[388380495,1759138254399,-480.0,0.00027397,7]
[388380496,1759138254409,-480.0,0.00027397,7]
[388380497,1759138254419,-480.0,0.00027397,7]
[388380498,1759138254428,-480.0,0.00027397,7]
[388380499,1759138254438,-1020.2,0.00027397,7]
[388380500,1759138254448,-480.0,0.00027397,7]
[388380501,1759138254457,-992.29,0.00027397,7]
[388380502,1759138254467,-480.0,0.00027397,7]
[388380503,1759138254477,-480.0,0.00027397,7]
[388380504,1759138254486,-8421.93,0.00027397,7]
[388380505,1759138254496,-480.0,0.00027397,7]
[388380506,1759138254505,-1275.47,0.00027397,7]
[388380507,1759138254515,-875.46,0.00027397,7]
[388380508,1759138254525,-1094.94,0.00027397,7]
[388380509,1759138254534,-480.0,0.00027397,7]
[388380510,1759138254544,-812.06,0.00027397,7]
[388380511,1759138254554,-480.0,0.00027397,7]
[388380512,1759138254564,-151.0,0.00027397,7]
[388380513,1759138254575,-480.0,0.00027397,7]
[388380514,1759138254585,-151.0,0.00027397,7]
[388380515,1759138254596,-2179.33,0.00027397,7]
[388380516,1759138254606,-480.0,0.00027397,7]
[388380517,1759138254616,-4498.904458,0.00027397,7]
[388380518,1759138254626,-4498.904458,0.00027397,7]
[388380519,1759138254636,-480.0,0.00027397,7]
[388380520,1759138254645,-480.0,0.00027397,7]
[388380521,1759138254655,-4498.904458,0.00027397,7]
[388380522,1759138254666,-480.0,0.00027397,7]
[388380523,1759138254676,-4498.904454,0.00027397,7]
[388380524,1759138254686,-3117.52,0.00027397,7]
[388380525,1759138254696,-480.0,0.00027397,7]
[388380526,1759138254706,-480.0,0.00027397,7]
[388380527,1759138254716,-1965.84,0.00027397,7]
[388380528,1759138254725,-481.46208121,0.00027397,7]
[388380529,1759138254735,-809.33,0.00027397,7]
[388380530,1759138254745,-920.3,0.00027397,7]
[388380531,1759138254755,-480.0,0.00027397,7]
[388380532,1759138254765,-480.0,0.00027397,7]
[388380533,1759138254775,-480.0,0.00027397,7]
[388380534,1759138254784,-480.0,0.00027397,7]
[388380535,1759138254794,-480.0,0.00027397,7]
[388380536,1759138254803,-900.73,0.00027397,7]
[388380537,1759138254813,-7584.31,0.00027397,7]
[388380538,1759138254825,-480.0,0.00027397,7]
[388380539,1759138254835,-480.0,0.00027397,7]
[388380540,1759138254847,-657.66,0.00027397,7]
[388380541,1759138254856,-480.0,0.00027397,7]
[388380542,1759138254865,-922.56,0.00027397,7]
[388380543,1759138254875,-673.49,0.00027397,7]
[388380544,1759138254884,-873.85,0.00027397,7]
[388380545,1759138254894,-480.0,0.00027397,7]
[388380546,1759138254903,-480.0,0.00027397,7]
[388380547,1759138254913,-480.0,0.00027397,7]
[388380548,1759138254923,-403.37011725,0.00027397,7]
[388380549,1759138254932,-480.0,0.00027397,7]
[388380550,1759138254942,-480.0,0.00027397,7]
[388380551,1759138254952,-677.891366,0.00027397,7]
[388380552,1759138254961,-480.0,0.00027397,7]
[388380553,1759138254970,-568.8,0.00027397,7]
[388380554,1759138254979,-1266.62,0.00027397,7]
[388380555,1759138254988,-677.891366,0.00027397,7]
[388380556,1759138254998,-16054.66,0.00027397,7]
[388380557,1759138255007,-480.0,0.00027397,7]
[388380558,1759138255017,-1603.16,0.00027397,7]
[388380559,1759138255027,-677.891366,0.00027397,7]
[388380560,1759138255036,-480.0,0.00027397,7]
[388380561,1759138255046,-480.0,0.00027397,7]
[388380562,1759138255056,-1353.87,0.00027397,7]
[388380563,1759138255069,-677.891373,0.00027397,7]
[388380564,1759138255079,-4388.32,0.00027397,7]
[388380565,1759138255088,-2116.95,0.00027397,7]
[388380566,1759138255099,-480.0,0.00027397,7]
[388380567,1759138255108,-480.0,0.00027397,7]
[388380568,1759138255118,-480.0,0.00027397,7]
[388380569,1759138255128,-480.0,0.00027397,7]
[388380570,1759138255138,-480.0,0.00027397,7]
[388380571,1759138255148,-531.76,0.00027397,7]
[388380572,1759138255157,-3482.48,0.00027397,7]
[388380573,1759138255168,-480.0,0.00027397,7]
[388380574,1759138255177,-1494.37,0.00027397,7]
[388380575,1759138255186,-845.72,0.00027397,7]
[388380576,1759138255195,-692.05,0.00027397,7]
[388380577,1759138255205,-3859.95,0.00027397,7]
[388380578,1759138255214,-480.0,0.00027397,7]
[388380579,1759138255223,-480.0,0.00027397,7]
[388380580,1759138255232,-195.85823,0.00027397,7]
[388380581,1759138255240,-480.0,0.00027397,7]
[388380582,1759138255251,-480.0,0.00027397,7]
[388380583,1759138255260,-480.0,0.00027397,7]
[388380584,1759138255269,-170.64745108,0.00027397,30]
[388380585,1759138255278,-150.0,0.00027397,5]
[388380586,1759138255288,-310.0,0.000274,2]
[388380587,1759138255297,-250.0,0.000274,7]
[388380588,1759138255306,-250.0,0.000274,7]
[388380589,1759138255315,-250.4,0.000274,7]
[388380590,1759138255324,-233.87608454,0.000274,7]
[388380591,1759138255334,-189.40172226,0.000274,7]
[388380592,1759138255344,-168.0,0.00027429,2]
[388380593,1759138255357,-249.0,0.00027453,7]
[388380594,1759138255366,-500.0,0.00027474,10]
[388380595,1759138255376,-151.0,0.00027478,7]
[388380596,1759138255384,-151.0,0.00027478,7]
[388380597,1759138255394,-151.0,0.00027478,7]
[388380598,1759138255403,-151.0,0.00027478,7]
[388380599,1759138255412,-151.0,0.00027478,7]
[388380600,1759138255421,-151.0,0.00027478,7]
[388380601,1759138255431,-250.0,0.000275,7]
[388380602,1759138255440,-151.0,0.000275,12]
[388380603,1759138255449,-420.0,0.00027522,2]
[388380604,1759138255458,-289.0,0.00027522,2]
[388380605,1759138255467,-420.0,0.00027522,2]
[388380606,1759138255476,-198.0,0.00027563,2]
[388380607,1759138255485,-198.0,0.00027563,2]
[388380608,1759138255494,-198.0,0.00027563,2]
[388380609,1759138255503,-500.0,0.00027563,2]
[388380610,1759138255511,-151.0,0.00027563,2]
[388380611,1759138255519,-908.0,0.00027563,2]
[388380612,1759138255529,-151.0,0.00027563,2]
[388380613,1759138255538,-151.0,0.00027563,2]
[388380614,1759138255546,-500.0,0.00027563,2]
[388380615,1759138255555,-500.0,0.00027563,2]
[388380616,1759138255567,-151.0,0.00027563,2]
[388380617,1759138255576,-1680.0,0.00027563,2]
[388380618,1759138255585,-151.0,0.00027571,7]
[388380619,1759138255595,-195.152204,0.00027571,7]
[388380620,1759138255604,-151.0,0.00027571,7]
[388380621,1759138255614,-195.152204,0.00027571,7]
[388380622,1759138255623,-195.152204,0.00027571,7]
[388380623,1759138255633,-195.152199,0.00027571,7]
[388380624,1759138255643,-151.151682,0.00027571,7]
[388380625,1759138255652,-151.0,0.00027571,7]
[388380626,1759138255662,-151.151682,0.00027571,7]
[388380627,1759138255671,-151.151682,0.00027571,7]
[388380628,1759138255680,-151.15169,0.00027571,7]
[388380629,1759138255690,-1680.0,0.00027628,2]
[388380630,1759138255699,-157.08,0.00027645,2]
[388380631,1759138255709,-601.74737169,0.00027655,2]
[388380632,1759138255718,-151.0,0.00027661,7]
[388380633,1759138255727,-153.52264,0.00027661,7]
[388380634,1759138255737,-151.0,0.00027661,7]
[388380635,1759138255747,-200.0,0.0002767,10]
[388380636,1759138255758,-200.0,0.0002767,10]
[388380637,1759138255769,-200.0,0.0002767,10]
[388380638,1759138255778,-544.51,0.00027671,7]
[388380639,1759138255788,-480.0,0.00027671,7]
[388380640,1759138255798,-480.0,0.00027671,7]
[388380641,1759138255807,-574.67,0.00027671,7]
[388380642,1759138255816,-480.0,0.00027671,7]
[388380643,1759138255825,-480.0,0.00027671,7]
[388380644,1759138255839,-480.0,0.00027671,7]
[388380645,1759138255848,-520.0,0.00027671,3]
[388380646,1759138255858,-480.0,0.00027671,7]
[388380647,1759138255867,-200.9072093,0.00027671,7]
[388380648,1759138255877,-480.0,0.00027671,7]
[388380649,1759138255887,-480.0,0.00027671,7]
[388380650,1759138255896,-480.0,0.00027671,7]
[388380651,1759138255906,-821.35,0.00027671,7]
[388380652,1759138255915,-480.0,0.00027671,7]
[388380653,1759138255925,-480.0,0.00027671,7]
[388380654,1759138255935,-480.0,0.00027671,7]
[388380655,1759138255944,-480.0,0.00027671,7]
[388380656,1759138255953,-480.0,0.00027671,7]
[388380657,1759138255962,-480.0,0.00027671,7]
[388380658,1759138255971,-480.0,0.00027671,7]
[388380659,1759138255985,-480.0,0.00027671,7]
[388380660,1759138255994,-480.0,0.00027671,7]
[388380661,1759138256004,-621.36,0.00027671,7]
[388380662,1759138256013,-480.0,0.00027671,7]
[388380663,1759138256022,-793.5,0.00027671,7]
[388380664,1759138256031,-638.48,0.00027671,7]
[388380665,1759138256040,-480.0,0.00027671,7]
[388380666,1759138256050,-482.94049831,0.00027671,7]
[388380667,1759138256063,-728.92,0.00027671,7]
[388380668,1759138256071,-480.0,0.00027671,7]
[388380669,1759138256081,-448.12717202,0.00027671,7]
[388380670,1759138256091,-680.16,0.00027671,7]
[388380671,1759138256101,-796.01,0.00027671,7]
[388380672,1759138256110,-952.18,0.00027671,7]
[388380673,1759138256119,-514.10939813,0.00027671,7]
[388380674,1759138256128,-483.67853633,0.00027671,7]
[388380675,1759138256141,-720.44,0.00027671,7]
[388380676,1759138256151,-480.0,0.00027671,7]
[388380677,1759138256160,-480.0,0.00027671,7]
[388380678,1759138256168,-480.0,0.00027671,7]
[388380679,1759138256177,-480.0,0.00027671,7]
[388380680,1759138256186,-480.0,0.00027671,7]
[388380681,1759138256195,-480.0,0.00027671,7]
[388380682,1759138256204,-934.86,0.00027671,7]
[388380683,1759138256213,-480.0,0.00027671,7]
[388380684,1759138256223,-582.32,0.00027671,7]
[388380685,1759138256232,-480.0,0.00027671,7]
[388380686,1759138256242,-480.0,0.00027671,7]
[388380687,1759138256251,-480.0,0.00027671,7]
[388380688,1759138256261,-480.0,0.00027671,7]
[388380689,1759138256270,-480.0,0.00027671,7]
[388380690,1759138256280,-480.0,0.00027671,7]
[388380691,1759138256289,-1837.62,0.00027671,7]
[388380692,1759138256299,-480.0,0.00027671,7]
[388380693,1759138256308,-480.0,0.00027671,7]
[388380694,1759138256317,-480.0,0.00027671,7]
[388380695,1759138256326,-480.0,0.00027671,7]
[388380696,1759138256335,-807.02,0.00027671,7]
[388380697,1759138256345,-480.0,0.00027671,7]
[388380698,1759138256355,-943.86,0.00027671,7]
[388380699,1759138256368,-480.0,0.00027671,7]
[388380700,1759138256378,-480.0,0.00027671,7]
[388380701,1759138256388,-480.0,0.00027671,7]
[388380702,1759138256397,-480.0,0.00027671,7]
[388380703,1759138256406,-480.0,0.00027671,7]
[388380704,1759138256416,-690.73,0.00027671,7]
[388380705,1759138256425,-1027.93,0.00027671,7]
[388380706,1759138256435,-648.29,0.00027671,7]
[388380707,1759138256444,-480.0,0.00027671,7]
[388380708,1759138256453,-480.0,0.00027671,7]
[388380709,1759138256462,-480.0,0.00027671,7]
[388380710,1759138256472,-480.0,0.00027671,7]
[388380711,1759138256481,-901.15,0.00027671,7]
[388380712,1759138256491,-480.0,0.00027671,7]
[388380713,1759138256500,-481.09384653,0.00027671,7]
[388380714,1759138256510,-480.0,0.00027671,7]
[388380715,1759138256520,-480.0,0.00027671,7]
[388380716,1759138256529,-726.93,0.00027671,7]
[388380717,1759138256539,-480.0,0.00027671,7]
[388380718,1759138256548,-480.0,0.00027671,7]
[388380719,1759138256557,-480.0,0.00027671,7]
[388380720,1759138256567,-480.0,0.00027671,7]
[388380721,1759138256576,-480.0,0.00027671,7]
[388380722,1759138256586,-151.0,0.00027671,7]
[388380723,1759138256595,-487.81049592,0.00027671,7]
[388380724,1759138256604,-782.1,0.00027671,7]
[388380725,1759138256614,-480.0,0.00027671,7]
[388380726,1759138256623,-480.0,0.00027671,7]
[388380727,1759138256632,-480.0,0.00027671,7]
[388380728,1759138256642,-151.0,0.00027671,7]
[388380729,1759138256652,-934.3,0.00027671,7]
[388380730,1759138256662,-546.15,0.00027671,7]
[388380731,1759138256673,-498.07085629,0.00027671,7]
[388380732,1759138256683,-707.7,0.00027671,7]
[388380733,1759138256693,-480.0,0.00027671,7]
[388380734,1759138256703,-1029.02,0.00027671,7]
[388380735,1759138256713,-480.0,0.00027671,7]
[388380736,1759138256723,-525.3,0.00027671,7]
[388380737,1759138256732,-878.3,0.00027671,7]
[388380738,1759138256741,-740.3,0.00027671,7]
[388380739,1759138256751,-480.0,0.00027671,7]
[388380740,1759138256760,-480.0,0.00027671,7]
[388380741,1759138256769,-480.0,0.00027671,7]
[388380742,1759138256778,-789.95,0.00027671,7]
[388380743,1759138256787,-480.0,0.00027671,7]
[388380744,1759138256797,-823.82,0.00027671,7]
[388380745,1759138256808,-943.11,0.00027671,7]
[388380746,1759138256817,-1000.0,0.00027671,7]
[388380747,1759138256826,-488.30215019,0.00027671,7]
[388380748,1759138256836,-634.52,0.00027671,7]
[388380749,1759138256845,-480.0,0.00027671,7]
[388380750,1759138256854,-480.0,0.00027671,7]
[388380751,1759138256863,-480.0,0.00027671,7]
[388380752,1759138256873,-480.0,0.00027671,7]
[388380753,1759138256882,-605.02,0.00027671,7]
[388380754,1759138256892,-480.0,0.00027671,7]
[388380755,1759138256901,-480.0,0.00027671,7]
[388380756,1759138256911,-480.0,0.00027671,7]
[388380757,1759138256920,-480.0,0.00027671,7]
[388380758,1759138256930,-480.0,0.00027671,7]
[388380759,1759138256940,-480.63216321,0.00027671,7]
[388380760,1759138256951,-551.42,0.00027671,7]
[388380761,1759138256962,-480.0,0.00027671,7]
[388380762,1759138256972,-480.0,0.00027671,7]
[388380763,1759138256981,-480.0,0.00027671,7]
[388380764,1759138256990,-480.0,0.00027671,7]
[388380765,1759138257143,-485.56612762,0.00027671,7]
[388380766,1759138257153,-480.0,0.00027671,7]
[388380767,1759138257163,-480.0,0.00027671,7]
[388380768,1759138257173,-483.05647936,0.00027671,7]
[388380769,1759138257183,-480.0,0.00027671,7]
[388380770,1759138257193,-480.0,0.00027671,7]
[388380771,1759138257203,-151.0,0.00027671,7]
[388380772,1759138257212,-480.0,0.00027671,7]
[388380773,1759138257222,-480.0,0.00027671,7]
[388380774,1759138257232,-480.0,0.00027671,7]
[388380775,1759138257242,-480.0,0.00027671,7]
[388380776,1759138257252,-926.52,0.00027671,7]
[388380777,1759138257261,-673.17,0.00027671,7]
[388380778,1759138257271,-480.0,0.00027671,7]
[388380779,1759138257280,-522.8,0.00027671,7]
[388380780,1759138257289,-480.0,0.00027671,7]
[388380781,1759138257299,-480.0,0.00027671,7]
[388380782,1759138257309,-649.72,0.00027671,7]
[388380783,1759138257319,-480.0,0.00027671,7]
[388380784,1759138257328,-480.0,0.00027671,7]
[388380785,1759138257338,-980.92,0.00027671,7]
[388380786,1759138257348,-480.0,0.00027671,7]
[388380787,1759138257357,-480.0,0.00027671,7]
[388380788,1759138257366,-480.0,0.00027671,7]
[388380789,1759138257374,-502.6,0.00027671,7]
[388380790,1759138257382,-735.71,0.00027671,7]
[388380791,1759138257390,-711.88,0.00027671,7]
[388380792,1759138257399,-480.0,0.00027671,7]
[388380793,1759138257408,-480.0,0.00027671,7]
[388380794,1759138257418,-480.0,0.00027671,7]
[388380795,1759138257428,-502.45,0.00027671,7]
[388380796,1759138257438,-480.0,0.00027671,7]
[388380797,1759138257449,-592.04,0.00027671,7]
[388380798,1759138257459,-480.0,0.00027671,7]
[388380799,1759138257469,-480.0,0.00027671,7]
[388380800,1759138257478,-480.0,0.00027671,7]
[388380801,1759138257488,-480.0,0.00027671,7]
[388380802,1759138257497,-151.0,0.00027671,7]
[388380803,1759138257506,-483.48290089,0.00027671,7]
[388380804,1759138257516,-1846.64,0.00027671,7]
[388380805,1759138257525,-480.0,0.00027671,7]
[388380806,1759138257535,-546.39,0.00027671,7]
[388380807,1759138257544,-480.0,0.00027671,7]
[388380808,1759138257554,-480.0,0.00027671,7]
[388380809,1759138257564,-480.0,0.00027671,7]
[388380810,1759138257574,-480.0,0.00027671,7]
[388380811,1759138257586,-480.0,0.00027671,7]
[388380812,1759138257595,-829.51,0.00027671,7]
[388380813,1759138257605,-480.0,0.00027671,7]
[388380814,1759138257614,-1511.8,0.00027671,7]
[388380815,1759138257624,-480.0,0.00027671,7]
[388380816,1759138257634,-753.09,0.00027671,7]
[388380817,1759138257643,-480.0,0.00027671,7]
[388380818,1759138257653,-480.0,0.00027671,7]
[388380819,1759138257663,-500.0,0.00027671,7]
[388380820,1759138257672,-480.0,0.00027671,7]
[388380821,1759138257682,-480.0,0.00027671,7]
[388380822,1759138257691,-653.25,0.00027671,7]
[388380823,1759138257700,-500.0,0.00027671,7]
[388380824,1759138257709,-289.77301404,0.00027671,7]
[388380825,1759138257719,-480.0,0.00027671,7]
[388380826,1759138257730,-480.0,0.00027671,7]
[388380827,1759138257740,-583.5,0.00027671,7]
[388380828,1759138257749,-480.0,0.00027671,7]
[388380829,1759138257758,-480.0,0.00027671,7]
[388380830,1759138257768,-281.49616388,0.00027671,7]
[388380831,1759138257777,-480.0,0.00027671,7]
[388380832,1759138257787,-511.12,0.00027671,7]
[388380833,1759138257797,-480.0,0.00027671,7]
[388380834,1759138257807,-583.21,0.00027671,7]
[388380835,1759138257816,-558.6,0.00027671,7]
[388380836,1759138257826,-480.0,0.00027671,7]
[388380837,1759138257835,-480.0,0.00027671,7]
[388380838,1759138257845,-480.0,0.00027671,7]
[388380839,1759138257855,-830.73,0.00027671,7]
[388380840,1759138257864,-158.912712,0.00027671,7]
[388380841,1759138257874,-970.7,0.00027671,7]
[388380842,1759138257883,-480.0,0.00027671,7]
[388380843,1759138257892,-610.79,0.00027671,7]
[388380844,1759138257902,-480.0,0.00027671,7]
[388380845,1759138257912,-480.0,0.00027671,7]
[388380846,1759138257923,-805.93,0.00027671,7]
[388380847,1759138257933,-496.47813687,0.00027671,7]
[388380848,1759138257942,-944.42,0.00027671,7]
[388380849,1759138257951,-3184.82,0.00027671,7]
[388380850,1759138257961,-480.0,0.00027671,7]
[388380851,1759138257971,-593.42,0.00027671,7]
[388380852,1759138257981,-480.0,0.00027671,7]
[388380853,1759138257991,-480.0,0.00027671,7]
[388380854,1759138258001,-1376.65,0.00027671,7]
[388380855,1759138258011,-680.74,0.00027671,7]
[388380856,1759138258020,-480.0,0.00027671,7]
[388380857,1759138258030,-480.0,0.00027671,7]
[388380858,1759138258040,-1015.79,0.00027671,7]
[388380859,1759138258050,-480.0,0.00027671,7]
[388380860,1759138258063,-480.0,0.00027671,7]
[388380861,1759138258073,-1819.12,0.00027671,7]
[388380862,1759138258083,-1099.25,0.00027671,7]
[388380863,1759138258092,-480.0,0.00027671,7]
[388380864,1759138258103,-1051.85,0.00027671,7]
[388380865,1759138258112,-480.0,0.00027671,7]
[388380866,1759138258121,-480.0,0.00027671,7]
[388380867,1759138258131,-480.0,0.00027671,7]
[388380868,1759138258141,-480.0,0.00027671,7]
[388380869,1759138258151,-480.0,0.00027671,7]
[388380870,1759138258160,-531.84,0.00027671,7]
[388380871,1759138258169,-481.50735612,0.00027671,7]
[388380872,1759138258178,-1080.8,0.00027671,7]
[388380873,1759138258187,-817.12,0.00027671,7]
[388380874,1759138258196,-592.46,0.00027671,7]
[388380875,1759138258206,-974.55,0.00027671,7]
[388380876,1759138258216,-805.49,0.00027671,7]
[388380877,1759138258229,-480.0,0.00027671,7]
[388380878,1759138258239,-480.0,0.00027671,7]
[388380879,1759138258248,-480.0,0.00027671,7]
[388380880,1759138258258,-571.04,0.00027671,7]
[388380881,1759138258267,-767.3,0.00027671,7]
[388380882,1759138258276,-893.21,0.00027671,7]
[388380883,1759138258285,-2970.42,0.00027671,7]
[388380884,1759138258295,-610.35,0.00027671,7]
[388380885,1759138258303,-591.15,0.00027671,7]
[388380886,1759138258312,-2236.08,0.00027671,7]
[388380887,1759138258321,-480.0,0.00027671,7]
[388380888,1759138258331,-480.0,0.00027671,7]
[388380889,1759138258340,-480.0,0.00027671,7]
[388380890,1759138258350,-480.0,0.00027671,7]
[388380891,1759138258359,-926.52,0.00027671,7]
[388380892,1759138258369,-564.03,0.00027671,7]
[388380893,1759138258378,-480.0,0.00027671,7]
[388380894,1759138258387,-480.0,0.00027671,7]
[388380895,1759138258396,-977.93,0.00027671,7]
[388380896,1759138258405,-1523.82,0.00027671,7]
[388380897,1759138258415,-480.0,0.00027671,7]
[388380898,1759138258424,-496.44597838,0.00027671,10]
[388380899,1759138258433,-1098.47,0.00027671,7]
[388380900,1759138258442,-480.0,0.00027671,7]
[388380901,1759138258451,-500.0,0.00027671,7]
[388380902,1759138258460,-480.0,0.00027671,7]
[388380903,1759138258470,-480.0,0.00027671,7]
[388380904,1759138258479,-480.0,0.00027671,7]
[388380905,1759138258489,-536.8,0.00027671,7]
[388380906,1759138258498,-543.41,0.00027671,7]
[388380907,1759138258507,-948.68,0.00027671,7]
[388380908,1759138258516,-399.57,0.00027671,7]
[388380909,1759138258525,-480.0,0.00027671,7]
[388380910,1759138258535,-771.92,0.00027671,7]
[388380911,1759138258544,-785.53,0.00027671,7]
[388380912,1759138258554,-1117.74,0.00027671,7]
[388380913,1759138258563,-1547.89,0.00027671,7]
[388380914,1759138258573,-864.4,0.00027671,7]
[388380915,1759138258582,-480.0,0.00027671,7]
[388380916,1759138258592,-550.14,0.00027671,7]
[388380917,1759138258601,-480.91170306,0.00027671,7]
[388380918,1759138258611,-480.0,0.00027671,7]
[388380919,1759138258620,-779.05,0.00027671,7]
[388380920,1759138258630,-480.0,0.00027671,7]
[388380921,1759138258639,-480.0,0.00027671,7]
[388380922,1759138258649,-480.0,0.00027671,7]
[388380923,1759138258658,-1973.98,0.00027671,7]
[388380924,1759138258669,-480.0,0.00027671,7]
[388380925,1759138258679,-480.0,0.00027671,7]
[388380926,1759138258688,-1427.44,0.00027671,7]
[388380927,1759138258698,-480.0,0.00027671,7]
[388380928,1759138258707,-954.8,0.00027671,7]
[388380929,1759138258717,-1540.07,0.00027671,7]
[388380930,1759138258725,-480.0,0.00027671,7]